[Event "Titled Tuesday Blitz June 20 Late 2023"]
[White "Kornyukov, Alexey"]
[Black "Thiel, Thomas"]
[WhiteFideId "4150457"]
[BlackFideId "4615964"]
[WhiteElo "2352"]
[BlackElo "2203"]
[Result "1-0"]
[Round "11"]
[TimeControl "180+2"]
[Date "2023.06.20"]
[WhiteClock "0:01:44"]
[BlackClock "0:02:20"]
[Board "92"]

1. d4 {[%clk 0:02:51]}  d5 {[%clk 0:02:58]} 2. c4 {[%clk 0:02:51]}  dxc4 {[%clk 0:02:59]} 3. e4 {[%clk 0:02:50]}  e5 {[%clk 0:02:59]} 4. Nf3 {[%clk 0:02:50]}  exd4 {[%clk 0:02:57]} 5. Bxc4 {[%clk 0:02:48]}  Nc6 {[%clk 0:02:56]} 6. O-O {[%clk 0:02:36]}  Be6 {[%clk 0:02:55]} 7. Bb5 {[%clk 0:02:29]}  Bc5 {[%clk 0:02:53]} 8. b4 {[%clk 0:02:22]}  Bb6 {[%clk 0:02:53]} 9. a4 {[%clk 0:02:11]}  a6 {[%clk 0:02:53]} 10. Bxc6+ {[%clk 0:02:10]}  bxc6 {[%clk 0:02:53]} 11. a5 {[%clk 0:02:01]}  Ba7 {[%clk 0:02:53]} 12. Bb2 {[%clk 0:02:02]}  Rb8 {[%clk 0:02:46]} 13. Bxd4 {[%clk 0:01:50]}  Bxd4 {[%clk 0:02:44]} 14. Nxd4 {[%clk 0:01:51]}  Rxb4 {[%clk 0:02:39]} 15. Nxc6 {[%clk 0:01:43]}  Qxd1 {[%clk 0:02:20]} 16. Rxd1 {[%clk 0:01:44]} 1-0


[Site "https://www.chess.com"]

[Event "Titled Tuesday Blitz June 20 Late 2023"]
[White "Fernandez, Maria Florencia"]
[Black "Alexikov, Alexander"]
[WhiteFideId "116459"]
[BlackFideId "14103958"]
[WhiteElo "2074"]
[BlackElo "2186"]
[Result "1-0"]
[Round "11"]
[TimeControl "180+2"]
[Date "2023.06.20"]
[WhiteClock "0:00:07"]
[BlackClock "0:00:00"]
[Board "95"]

1. d4 {[%clk 0:03:00]}  Nf6 {[%clk 0:02:57]} 2. c4 {[%clk 0:03:01]}  g6 {[%clk 0:02:57]} 3. Nc3 {[%clk 0:02:59]}  Bg7 {[%clk 0:02:57]} 4. e4 {[%clk 0:03:00]}  d6 {[%clk 0:02:57]} 5. Be2 {[%clk 0:03:00]}  O-O {[%clk 0:02:57]} 6. Be3 {[%clk 0:03:00]}  c6 {[%clk 0:02:53]} 7. g4 {[%clk 0:03:00]}  a6 {[%clk 0:02:52]} 8. h4 {[%clk 0:02:51]}  b5 {[%clk 0:02:50]} 9. h5 {[%clk 0:02:46]}  b4 {[%clk 0:02:47]} 10. g5 {[%clk 0:02:34]}  bxc3 {[%clk 0:02:24]} 11. gxf6 {[%clk 0:02:33]}  exf6 {[%clk 0:02:12]} 12. hxg6 {[%clk 0:02:28]}  fxg6 {[%clk 0:02:04]} 13. bxc3 {[%clk 0:02:25]}  Re8 {[%clk 0:02:03]} 14. Bd3 {[%clk 0:02:19]}  Qa5 {[%clk 0:01:48]} 15. Ne2 {[%clk 0:02:19]}  Nd7 {[%clk 0:01:42]} 16. c5 {[%clk 0:02:08]}  d5 {[%clk 0:01:34]} 17. exd5 {[%clk 0:02:07]}  cxd5 {[%clk 0:01:32]} 18. Qb3 {[%clk 0:01:59]}  Nf8 {[%clk 0:01:32]} 19. Qxd5+ {[%clk 0:01:56]}  Be6 {[%clk 0:01:31]} 20. Qg2 {[%clk 0:01:37]}  Rad8 {[%clk 0:01:29]} 21. Kf1 {[%clk 0:01:25]}  Bd5 {[%clk 0:01:24]} 22. Qh2 {[%clk 0:01:16]}  Bxh1 {[%clk 0:01:21]} 23. Qxh1 {[%clk 0:01:17]}  Kh8 {[%clk 0:01:11]} 24. Qb7 {[%clk 0:01:13]}  Rb8 {[%clk 0:01:04]} 25. Qxa6 {[%clk 0:01:10]}  Qc7 {[%clk 0:01:03]} 26. Qd6 {[%clk 0:01:04]}  Qc8 {[%clk 0:01:01]} 27. Qg3 {[%clk 0:00:56]}  Rb2 {[%clk 0:00:58]} 28. Nf4 {[%clk 0:00:55]}  Qc6 {[%clk 0:00:52]} 29. Qh2 {[%clk 0:00:49]}  f5 {[%clk 0:00:45]} 30. Qg2 {[%clk 0:00:33]}  Qc7 {[%clk 0:00:44]} 31. Qf3 {[%clk 0:00:30]}  g5 {[%clk 0:00:39]} 32. Nd5 {[%clk 0:00:29]}  Qd8 {[%clk 0:00:36]} 33. Bxf5 {[%clk 0:00:26]}  Ng6 {[%clk 0:00:35]} 34. Bxg6 {[%clk 0:00:25]}  hxg6 {[%clk 0:00:34]} 35. Nb6 {[%clk 0:00:13]}  Rf8 {[%clk 0:00:29]} 36. Qh3+ {[%clk 0:00:13]}  Kg8 {[%clk 0:00:29]} 37. Qe6+ {[%clk 0:00:13]}  Rf7 {[%clk 0:00:29]} 38. Qxg6 {[%clk 0:00:13]}  Qe7 {[%clk 0:00:24]} 39. Re1 {[%clk 0:00:07]}  g4 {[%clk 0:00:19]} 40. Nc4 {[%clk 0:00:07]}  Qd7 {[%clk 0:00:18]} 41. Nxb2 {[%clk 0:00:06]}  Qb7 {[%clk 0:00:17]} 42. Nd3 {[%clk 0:00:06]}  Qh1+ {[%clk 0:00:16]} 43. Ke2 {[%clk 0:00:07]}  Qf3+ {[%clk 0:00:15]} 44. Kd2 {[%clk 0:00:07]}  Ra7 {[%clk 0:00:09]} 45. Qe6+ {[%clk 0:00:06]}  Kf8 {[%clk 0:00:08]} 46. Rg1 {[%clk 0:00:06]}  Rf7 {[%clk 0:00:04]} 47. Rxg4 {[%clk 0:00:06]}  Qb7 {[%clk 0:00:03]} 48. Qb3 {[%clk 0:00:05]}  Qa7 {[%clk 0:00:03]} 49. Rf4 {[%clk 0:00:05]}  Rxf4 {[%clk 0:00:02]} 50. Nxf4 {[%clk 0:00:06]}  Qd7 {[%clk 0:00:01]} 51. Ne6+ {[%clk 0:00:06]}  Kg8 {[%clk 0:00:01]} 52. Nxg7+ {[%clk 0:00:07]}  Kxg7 {[%clk 0:00:00]} 53. Qb6 {[%clk 0:00:07]} 1-0


[Site "https://www.chess.com"]

[Event "Titled Tuesday Blitz June 20 Late 2023"]
[White "Cueto, Jonny"]
[Black "Sadilek, Peter"]
[WhiteFideId "3300145"]
[BlackFideId "1616439"]
[WhiteElo "2240"]
[BlackElo "2227"]
[Result "0-1"]
[Round "11"]
[TimeControl "180+2"]
[Date "2023.06.20"]
[WhiteClock "0:00:00"]
[BlackClock "0:01:29"]
[Board "96"]

1. d4 {[%clk 0:02:57]}  d5 {[%clk 0:02:59]} 2. Bf4 {[%clk 0:02:57]}  e6 {[%clk 0:03:00]} 3. e3 {[%clk 0:02:57]}  Bd6 {[%clk 0:03:00]} 4. Nf3 {[%clk 0:02:57]}  Nf6 {[%clk 0:03:00]} 5. Ne5 {[%clk 0:02:56]}  O-O {[%clk 0:03:01]} 6. Be2 {[%clk 0:02:56]}  b6 {[%clk 0:02:59]} 7. Nd2 {[%clk 0:02:56]}  Ba6 {[%clk 0:02:59]} 8. O-O {[%clk 0:02:56]}  Bxe2 {[%clk 0:02:59]} 9. Qxe2 {[%clk 0:02:57]}  c5 {[%clk 0:03:00]} 10. c3 {[%clk 0:02:57]}  Qc7 {[%clk 0:02:58]} 11. Ndf3 {[%clk 0:02:52]}  Nc6 {[%clk 0:02:59]} 12. Rad1 {[%clk 0:02:35]}  Nh5 {[%clk 0:02:40]} 13. Nxc6 {[%clk 0:02:21]}  Nxf4 {[%clk 0:02:36]} 14. exf4 {[%clk 0:02:21]}  Qxc6 {[%clk 0:02:35]} 15. g3 {[%clk 0:02:20]}  cxd4 {[%clk 0:02:34]} 16. Nxd4 {[%clk 0:01:50]}  Qa4 {[%clk 0:02:33]} 17. a3 {[%clk 0:01:47]}  Rac8 {[%clk 0:02:33]} 18. Rfe1 {[%clk 0:01:43]}  Qc4 {[%clk 0:02:33]} 19. Nf3 {[%clk 0:01:37]}  Qxe2 {[%clk 0:02:25]} 20. Rxe2 {[%clk 0:01:37]}  Rc7 {[%clk 0:02:20]} 21. Ne5 {[%clk 0:01:37]}  Bxe5 {[%clk 0:02:19]} 22. Rxe5 {[%clk 0:01:38]}  Rfc8 {[%clk 0:02:18]} 23. Rde1 {[%clk 0:01:37]}  g6 {[%clk 0:02:19]} 24. g4 {[%clk 0:01:34]}  Rc4 {[%clk 0:02:19]} 25. f3 {[%clk 0:01:14]}  Rxf4 {[%clk 0:02:18]} 26. Kf2 {[%clk 0:01:15]}  Rfc4 {[%clk 0:02:15]} 27. h4 {[%clk 0:01:14]}  Kg7 {[%clk 0:02:14]} 28. h5 {[%clk 0:01:14]}  b5 {[%clk 0:02:11]} 29. Rh1 {[%clk 0:01:07]}  a5 {[%clk 0:02:11]} 30. Rh2 {[%clk 0:00:47]}  Kf6 {[%clk 0:02:11]} 31. Re1 {[%clk 0:00:40]}  b4 {[%clk 0:02:10]} 32. cxb4 {[%clk 0:00:35]}  axb4 {[%clk 0:02:10]} 33. axb4 {[%clk 0:00:26]}  Rxb4 {[%clk 0:02:11]} 34. Kg3 {[%clk 0:00:25]}  g5 {[%clk 0:02:11]} 35. Rf2 {[%clk 0:00:18]}  Rb3 {[%clk 0:02:10]} 36. Ree2 {[%clk 0:00:17]}  Rcb8 {[%clk 0:02:10]} 37. Rc2 {[%clk 0:00:17]}  h6 {[%clk 0:02:08]} 38. Rfe2 {[%clk 0:00:17]}  d4 {[%clk 0:02:06]} 39. Red2 {[%clk 0:00:17]}  e5 {[%clk 0:02:04]} 40. Rc6+ {[%clk 0:00:16]}  Kg7 {[%clk 0:02:05]} 41. Rc5 {[%clk 0:00:15]}  R8b5 {[%clk 0:02:04]} 42. Rcc2 {[%clk 0:00:12]}  e4 {[%clk 0:02:01]} 43. Rf2 {[%clk 0:00:08]}  Rxf3+ {[%clk 0:02:02]} 44. Rxf3 {[%clk 0:00:08]}  exf3 {[%clk 0:02:03]} 45. Kxf3 {[%clk 0:00:09]}  Rd5 {[%clk 0:01:53]} 46. Ke4 {[%clk 0:00:07]}  d3 {[%clk 0:01:52]} 47. Rd2 {[%clk 0:00:08]}  Rb5 {[%clk 0:01:51]} 48. Kxd3 {[%clk 0:00:08]}  Rb4 {[%clk 0:01:52]} 49. Rg2 {[%clk 0:00:07]}  Kf6 {[%clk 0:01:50]} 50. Kc3 {[%clk 0:00:08]}  Rf4 {[%clk 0:01:48]} 51. b4 {[%clk 0:00:08]}  Ke5 {[%clk 0:01:49]} 52. Kb3 {[%clk 0:00:06]}  Ke4 {[%clk 0:01:45]} 53. Ka4 {[%clk 0:00:06]}  Kf3 {[%clk 0:01:45]} 54. Rg1 {[%clk 0:00:05]}  Kf2 {[%clk 0:01:40]} 55. Rb1 {[%clk 0:00:02]}  Rxg4 {[%clk 0:01:40]} 56. Ka5 {[%clk 0:00:03]}  Re4 {[%clk 0:01:30]} 57. b5 {[%clk 0:00:03]}  f5 {[%clk 0:01:31]} 58. b6 {[%clk 0:00:04]}  Re8 {[%clk 0:01:32]} 59. b7 {[%clk 0:00:03]}  g4 {[%clk 0:01:32]} 60. Kb5 {[%clk 0:00:02]}  g3 {[%clk 0:01:30]} 61. Kc4 {[%clk 0:00:00]}  g2 {[%clk 0:01:29]} 0-1


[Site "https://www.chess.com"]

[Event "Titled Tuesday Blitz June 20 Late 2023"]
[White "Gyulamiryan-koryun"]
[Black "Skaric, Djuro"]
[BlackFideId "934569"]
[WhiteElo "1906"]
[BlackElo "2282"]
[Result "1-0"]
[Round "11"]
[TimeControl "180+2"]
[Date "2023.06.20"]
[WhiteClock "0:01:53"]
[BlackClock "0:01:01"]
[Board "99"]

1. e4 {[%clk 0:03:00]}  e6 {[%clk 0:02:57]} 2. d4 {[%clk 0:02:59]}  d5 {[%clk 0:02:56]} 3. Nd2 {[%clk 0:02:59]}  Nf6 {[%clk 0:02:56]} 4. e5 {[%clk 0:02:58]}  Nfd7 {[%clk 0:02:55]} 5. Bd3 {[%clk 0:02:59]}  c5 {[%clk 0:02:55]} 6. c3 {[%clk 0:02:58]}  Nc6 {[%clk 0:02:55]} 7. Ne2 {[%clk 0:02:58]}  Qb6 {[%clk 0:02:54]} 8. Nf3 {[%clk 0:02:58]}  f6 {[%clk 0:02:53]} 9. exf6 {[%clk 0:02:57]}  Nxf6 {[%clk 0:02:53]} 10. O-O {[%clk 0:02:57]}  Bd6 {[%clk 0:02:52]} 11. a3 {[%clk 0:02:54]}  cxd4 {[%clk 0:02:51]} 12. cxd4 {[%clk 0:02:55]}  O-O {[%clk 0:02:50]} 13. b4 {[%clk 0:02:53]}  Ne4 {[%clk 0:02:50]} 14. Bb2 {[%clk 0:02:47]}  Bd7 {[%clk 0:02:48]} 15. Nc3 {[%clk 0:02:42]}  Nxc3 {[%clk 0:02:42]} 16. Bxc3 {[%clk 0:02:42]}  Rac8 {[%clk 0:02:31]} 17. Rc1 {[%clk 0:02:41]}  h6 {[%clk 0:02:10]} 18. Bb1 {[%clk 0:02:39]}  Rf6 {[%clk 0:02:00]} 19. Qd3 {[%clk 0:02:37]}  Kf7 {[%clk 0:01:58]} 20. Ne5+ {[%clk 0:02:25]}  Nxe5 {[%clk 0:01:52]} 21. dxe5 {[%clk 0:02:25]}  Bb5 {[%clk 0:01:40]} 22. Qg3 {[%clk 0:02:15]}  Rxc3 {[%clk 0:01:33]} 23. Qxc3 {[%clk 0:02:12]}  Bxf1 {[%clk 0:01:27]} 24. exf6 {[%clk 0:02:08]}  Bb5 {[%clk 0:01:25]} 25. fxg7 {[%clk 0:02:02]}  Qd8 {[%clk 0:01:19]} 26. Bh7 {[%clk 0:01:55]}  d4 {[%clk 0:01:10]} 27. g8=Q+ {[%clk 0:01:52]}  Qxg8 {[%clk 0:01:04]} 28. Bxg8+ {[%clk 0:01:53]}  Kxg8 {[%clk 0:01:01]} 29. Qxd4 {[%clk 0:01:53]} 1-0


[Site "https://www.chess.com"]

[Event "Titled Tuesday Blitz June 20 Late 2023"]
[White "Dmitriev, Sergey"]
[Black "Ricaurte Lopez, Juan Carlos"]
[WhiteFideId "14101785"]
[BlackFideId "3600327"]
[WhiteElo "2132"]
[BlackElo "2200"]
[Result "0-1"]
[Round "11"]
[TimeControl "180+2"]
[Date "2023.06.20"]
[WhiteClock "0:01:09"]
[BlackClock "0:01:21"]
[Board "100"]

1. d4 {[%clk 0:03:00]}  Nf6 {[%clk 0:02:49]} 2. Nf3 {[%clk 0:02:59]}  e6 {[%clk 0:02:48]} 3. Bf4 {[%clk 0:02:59]}  b6 {[%clk 0:02:48]} 4. h3 {[%clk 0:02:59]}  Bb7 {[%clk 0:02:48]} 5. Nbd2 {[%clk 0:02:59]}  c5 {[%clk 0:02:40]} 6. e3 {[%clk 0:02:59]}  Nc6 {[%clk 0:02:34]} 7. c3 {[%clk 0:02:58]}  Be7 {[%clk 0:02:30]} 8. Be2 {[%clk 0:02:57]}  O-O {[%clk 0:02:26]} 9. O-O {[%clk 0:02:48]}  Nd5 {[%clk 0:02:22]} 10. Bh2 {[%clk 0:02:46]}  f5 {[%clk 0:02:21]} 11. Ne5 {[%clk 0:02:41]}  d6 {[%clk 0:02:18]} 12. Nxc6 {[%clk 0:02:39]}  Bxc6 {[%clk 0:02:19]} 13. e4 {[%clk 0:02:36]}  fxe4 {[%clk 0:02:02]} 14. Nxe4 {[%clk 0:02:36]}  Nf4 {[%clk 0:02:00]} 15. Bf3 {[%clk 0:02:23]}  Qd7 {[%clk 0:01:56]} 16. dxc5 {[%clk 0:02:16]}  bxc5 {[%clk 0:01:53]} 17. Qd2 {[%clk 0:02:06]}  Nxh3+ {[%clk 0:01:41]} 18. Kh1 {[%clk 0:01:53]}  Rxf3 {[%clk 0:01:41]} 19. gxf3 {[%clk 0:01:50]}  Rf8 {[%clk 0:01:38]} 20. Kg2 {[%clk 0:01:19]}  e5 {[%clk 0:01:34]} 21. Rad1 {[%clk 0:01:11]}  Qf5 {[%clk 0:01:29]} 22. Ng3 {[%clk 0:01:09]}  Qxf3+ {[%clk 0:01:20]} 23. Kxh3 {[%clk 0:01:09]}  Bd7# {[%clk 0:01:21]} 0-1


[Site "https://www.chess.com"]

[Event "Titled Tuesday Blitz June 20 Late 2023"]
[White "Grabs, Peter"]
[Black "Sainz Aguirre, Ignacio"]
[WhiteFideId "16203887"]
[BlackFideId "5101727"]
[WhiteElo "1694"]
[BlackElo "1889"]
[Result "0-1"]
[Round "11"]
[TimeControl "180+2"]
[Date "2023.06.20"]
[WhiteClock "0:00:15"]
[BlackClock "0:00:25"]
[Board "102"]

1. e4 {[%clk 0:03:00]}  e6 {[%clk 0:02:59]} 2. d4 {[%clk 0:03:00]}  d5 {[%clk 0:02:59]} 3. exd5 {[%clk 0:03:01]}  exd5 {[%clk 0:02:59]} 4. Bd3 {[%clk 0:03:01]}  Nc6 {[%clk 0:02:58]} 5. c3 {[%clk 0:03:01]}  Bd6 {[%clk 0:02:56]} 6. Ne2 {[%clk 0:03:00]}  Nge7 {[%clk 0:02:55]} 7. O-O {[%clk 0:02:58]}  O-O {[%clk 0:02:53]} 8. Bf4 {[%clk 0:02:58]}  Bf5 {[%clk 0:02:53]} 9. Bxf5 {[%clk 0:02:38]}  Nxf5 {[%clk 0:02:52]} 10. Bxd6 {[%clk 0:02:39]}  Nxd6 {[%clk 0:02:45]} 11. Nd2 {[%clk 0:02:39]}  f5 {[%clk 0:02:38]} 12. Nf4 {[%clk 0:02:35]}  Ne4 {[%clk 0:02:36]} 13. Nd3 {[%clk 0:02:28]}  Qd6 {[%clk 0:02:21]} 14. f3 {[%clk 0:02:23]}  Nxd2 {[%clk 0:02:16]} 15. Qxd2 {[%clk 0:02:22]}  Rae8 {[%clk 0:02:14]} 16. Rfe1 {[%clk 0:02:22]}  b6 {[%clk 0:02:04]} 17. Re2 {[%clk 0:01:50]}  Na5 {[%clk 0:01:52]} 18. b3 {[%clk 0:01:41]}  Rxe2 {[%clk 0:01:34]} 19. Qxe2 {[%clk 0:01:42]}  c5 {[%clk 0:01:30]} 20. Qe3 {[%clk 0:01:39]}  c4 {[%clk 0:01:26]} 21. b4 {[%clk 0:01:28]}  Nc6 {[%clk 0:01:13]} 22. Ne5 {[%clk 0:01:27]}  Nxe5 {[%clk 0:01:07]} 23. Qxe5 {[%clk 0:01:26]}  Qxe5 {[%clk 0:01:00]} 24. dxe5 {[%clk 0:01:27]}  f4 {[%clk 0:01:00]} 25. Rd1 {[%clk 0:01:26]}  Rd8 {[%clk 0:01:00]} 26. Rd4 {[%clk 0:01:25]}  g5 {[%clk 0:00:59]} 27. h4 {[%clk 0:01:20]}  h6 {[%clk 0:00:59]} 28. hxg5 {[%clk 0:01:14]}  hxg5 {[%clk 0:00:59]} 29. g3 {[%clk 0:01:14]}  fxg3 {[%clk 0:00:58]} 30. Kg2 {[%clk 0:01:13]}  Kf7 {[%clk 0:00:59]} 31. Kxg3 {[%clk 0:01:13]}  Ke6 {[%clk 0:00:59]} 32. f4 {[%clk 0:01:12]}  gxf4+ {[%clk 0:00:59]} 33. Rxf4 {[%clk 0:00:46]}  Kxe5 {[%clk 0:00:51]} 34. Rh4 {[%clk 0:00:45]}  d4 {[%clk 0:00:40]} 35. cxd4+ {[%clk 0:00:40]}  Rxd4 {[%clk 0:00:40]} 36. Rh5+ {[%clk 0:00:40]}  Ke4 {[%clk 0:00:39]} 37. Kf2 {[%clk 0:00:40]}  Kd3 {[%clk 0:00:38]} 38. Rh3+ {[%clk 0:00:36]}  Kc2 {[%clk 0:00:37]} 39. Ke2 {[%clk 0:00:35]}  Re4+ {[%clk 0:00:36]} 40. Kf1 {[%clk 0:00:33]}  c3 {[%clk 0:00:33]} 41. Rh2+ {[%clk 0:00:30]}  Kb1 {[%clk 0:00:29]} 42. Kf2 {[%clk 0:00:28]}  c2 {[%clk 0:00:27]} 43. Kf3 {[%clk 0:00:15]}  Rxb4 {[%clk 0:00:25]} 0-1


[Site "https://www.chess.com"]